fUST/lending_fUST_20240910
["ID","MTS","AMOUNT","RATE_DAILY","PERIOD"]
[337688418,1725961571999,-500.0,0.00019999,2]
[337688419,1725961572022,-347.87524726,0.00019999,2]
[337688420,1725961572048,-502.5173526,0.00019999,2]
[337688421,1725961572072,-528.14866901,0.00019999,2]
[337688422,1725961572095,-500.0,0.00019999,2]
[337688423,1725961572118,-200.29834476,0.00019999,2]
[337688424,1725961572141,-500.0,0.00019999,2]
[337688425,1725961572164,-500.0,0.00019999,2]
[337688426,1725961572188,-2031.08,0.00019999,2]
[337688427,1725961572217,-1564.66,0.00019999,2]
[337688428,1725961572241,-500.0,0.00019999,2]
[337688429,1725961572266,-2213.22,0.00019999,2]
[337688430,1725961572290,-500.0,0.00019999,2]
[337688431,1725961572315,-500.0,0.00019999,2]
[337688432,1725961572339,-501.30464746,0.00019999,2]
[337688433,1725961572363,-503.68,0.00019999,2]
[337688434,1725961572388,-485.70526164,0.00019999,2]
[337688435,1725961572412,-500.0,0.00019999,2]
[337688436,1725961572443,-500.0,0.00019999,2]
[337688437,1725961572469,-701.74,0.00019999,2]
[337688438,1725961572496,-714.62,0.00019999,2]
[337688439,1725961572523,-1047.96,0.00019999,2]
[337688440,1725961572548,-1047.96,0.00019999,2]
[337688441,1725961572575,-1047.96,0.00019999,2]
[337688442,1725961572601,-1047.96,0.00019999,2]
[337688443,1725961572625,-1047.96,0.00019999,2]
[337688444,1725961572649,-308.47973874,0.00019999,2]
[337688445,1725961572673,-1328.77,0.00019999,2]
[337688446,1725961572699,-540.65,0.00019999,2]
[337688447,1725961572723,-500.0,0.00019999,2]
[337688448,1725961572749,-244.14042739,0.00019999,2]
[337688449,1725961573353,305.468567,0.00018938,2]
[337688492,1725961818979,336.08688133,0.00027,120]
[337688510,1725961832216,-600.0,0.00019927,3]
[337688870,1725961848518,-20.94,0.00019927,3]
[337688871,1725961848529,-300.0,0.00019933,2]
[337688872,1725961848540,-300.0,0.00019933,2]
[337688873,1725961848550,-1512.54,0.00019933,2]
[337688874,1725961848560,-1103.19,0.00019933,2]
[337688875,1725961848570,-500.0,0.00019933,2]
[337688876,1725961848579,-500.0,0.00019933,2]
[337688877,1725961848590,-500.0,0.00019933,2]
[337688878,1725961848600,-500.0,0.00019933,2]
[337688879,1725961848617,-528.12097159,0.00019933,2]
[337688880,1725961848633,-500.0,0.00019933,2]
[337688881,1725961848643,-500.0,0.00019933,2]
[337688882,1725961848655,-500.0,0.00019933,2]
[337688883,1725961848665,-500.0,0.00019933,2]
[337688884,1725961848676,-500.0,0.00019933,2]
[337688885,1725961848686,-500.0,0.00019933,2]
[337688886,1725961848697,-500.0,0.00019933,2]
[337688887,1725961848709,-500.0,0.00019933,2]
[337688888,1725961848719,-500.0,0.00019933,2]
[337688889,1725961848730,-500.0,0.00019933,2]
[337688890,1725961848741,-500.0,0.00019933,2]
[337688891,1725961848752,-145.17103961,0.00019933,2]
[337688892,1725961853352,387.389671,0.00017808,2]
[337688896,1725961948431,10000.0,0.00019,2]
[337688898,1725961957958,10000.0,0.00019,10]
[337688899,1725961966175,10000.0,0.00019,2]
[337688900,1725961973971,10000.0,0.00019,2]
[337688901,1725961981107,10000.0,0.00019,2]
[337688902,1725961987054,10000.0,0.00019,2]
[337688904,1725961996239,10000.0,0.00019,2]
[337688905,1725962004950,10000.0,0.00019,2]
[337688906,1725962014221,10000.0,0.00019,2]
[337688907,1725962020969,10000.0,0.00019,2]
[337688908,1725962028423,10000.0,0.00019,2]
[337688909,1725962035367,10000.0,0.00019,2]
[337688910,1725962048657,4009.49,0.00019,2]
[337688914,1725962117733,7204.318749,0.00019,2]
[337688918,1725962228831,240.86764743,0.00019,2]
[337688923,1725962335102,17046.99679857,0.00019,2]
[337688928,1725962373564,18369.07968489,0.00017,2]
[337688929,1725962403197,500.0,0.0001,2]
[337688968,1725963032368,-368.020187,0.00017808,2]
[337688969,1725963032378,-200.36237529,0.00019,2]
[337688970,1725963032388,-201.7594707,0.00019009,2]
[337688971,1725963032397,-150.0,0.00019537,2]
[337688972,1725963032407,-523.0,0.00019537,2]
[337688973,1725963032416,-475.76193678,0.00019877,2]
[337688974,1725963032425,-2000.0,0.000199,2]
[337688975,1725963032436,-300.0,0.00019929,2]
[337688976,1725963032445,-1261.31196732,0.0001993,2]
[337688990,1725963040277,-188.19803268,0.0001993,2]
[337688991,1725963040287,-197.26834409,0.0001993,2]
[337689143,1725963302351,-600.48209713,0.00018,2]
[337689170,1725963738204,1153.77378581,0.00026,60]
[337689272,1725964232363,-350.245185,0.00017808,2]
[337689273,1725964232373,-201.759467,0.00018972,2]
[337689275,1725964232383,-2118.4982855,0.00019281,2]
[337689750,1725964240534,-2550.02,0.00019281,2]
[337689751,1725964240584,-415.77392356,0.00019281,2]
[337689752,1725964240594,-300.0,0.00019553,2]
[337689753,1725964240604,-14426.91287457,0.00019554,3]
[337689754,1725964240614,-5084.29220907,0.00019554,2]
[337689755,1725964240625,-860.82,0.00019793,3]
[337689756,1725964240635,-337.7365135,0.000198,2]
[337689757,1725964240644,-3055.62,0.00019802,2]
[337689758,1725964240654,-596.96992649,0.00019802,2]
[337689759,1725964240666,-500.0,0.00019802,2]
[337689778,1725964240910,-513.45124992,0.00019802,2]
[337689780,1725964240920,-500.0,0.00019802,2]
[337689782,1725964240931,-500.0,0.00019802,2]
[337689784,1725964240940,-500.0,0.00019802,2]
[337689786,1725964240949,-500.0,0.00019802,2]
[337689788,1725964240959,-500.0,0.00019802,2]
[337689790,1725964240969,-6669.69,0.00019802,2]
[337689792,1725964240978,-500.0,0.00019802,2]
[337689794,1725964240988,-500.0,0.00019802,2]
[337689796,1725964240998,-500.0,0.00019802,2]
[337689798,1725964241007,-500.0,0.00019802,2]
[337689800,1725964241017,-500.0,0.00019802,2]
[337689802,1725964241026,-500.0,0.00019802,2]
[337689804,1725964241036,-500.0,0.00019802,2]
[337689806,1725964241046,-500.0,0.00019802,2]
[337689808,1725964241055,-500.0,0.00019802,2]
[337689810,1725964241065,-500.0,0.00019802,2]
[337689812,1725964241075,-500.0,0.00019802,2]
[337689814,1725964241085,-500.0,0.00019802,2]
[337689816,1725964241094,-500.0,0.00019802,2]
[337689818,1725964241104,-500.0,0.00019802,2]
[337689820,1725964241113,-500.0,0.00019802,2]
[337689822,1725964241122,-500.0,0.00019802,2]
[337689824,1725964241132,-500.0,0.00019802,2]
[337689826,1725964241142,-500.0,0.00019802,2]
[337689828,1725964241152,-500.0,0.00019802,2]
[337689830,1725964241161,-527.70773603,0.00019802,2]
[337689832,1725964241170,-500.0,0.00019802,2]
[337689834,1725964241179,-500.0,0.00019802,2]
[337689836,1725964241189,-500.0,0.00019802,2]
[337689837,1725964241198,-1280.67,0.00019802,2]
[337689839,1725964241208,-1487.56,0.00019802,2]
[337689841,1725964241218,-1389.12,0.00019802,2]
[337689843,1725964241230,-1222.44,0.00019802,2]
[337689846,1725964241241,-594.18006222,0.00019802,2]
[337689847,1725964241250,-500.0,0.00019802,2]
[337689850,1725964241260,-500.0,0.00019802,2]
[337689851,1725964241269,-500.0,0.00019802,2]
[337689854,1725964241279,-500.0,0.00019802,2]
[337689856,1725964241289,-500.0,0.00019802,2]
[337689857,1725964241298,-175.66794384,0.00019802,2]
[337689859,1725964241308,-1057.22,0.00019802,2]
[337689861,1725964241318,-500.0,0.00019802,2]
[337689863,1725964241327,-500.0,0.00019802,2]
[337689865,1725964241336,-500.0,0.00019802,2]
[337689867,1725964241351,-29604.4567399,0.00019803,3]
[337689869,1725964241362,-99921.46185091,0.00019803,2]
[337689871,1725964241371,-76585.03619694,0.00019803,2]
[337689873,1725964241382,-9729.82935585,0.00019831,2]
[337689876,1725964241394,-4840.93,0.00019927,2]
[337689878,1725964241405,-4467.37,0.00019927,2]
[337689880,1725964241416,-500.0,0.00019927,2]
[337689882,1725964241427,-1641.72,0.00019927,2]
[337689884,1725964241438,-8497.75,0.00019927,2]
[337689886,1725964241448,-1084.69,0.00019927,2]
[337689888,1725964241466,-1435.2,0.00019927,2]
[337689890,1725964241476,-500.0,0.00019927,2]
[337689892,1725964241487,-1901.85,0.00019927,2]
[337689894,1725964241497,-1695.92,0.00019927,2]
[337689896,1725964241507,-151.0,0.00019927,2]
[337689898,1725964241516,-354.39716057,0.00019927,2]
[337689900,1725964241526,-857.25,0.00019927,2]
[337689902,1725964241536,-327.42951185,0.00019927,2]
[337689905,1725964241546,-500.0,0.00019927,2]
[337689907,1725964241556,-500.0,0.00019927,2]
[337689909,1725964241565,-500.0,0.00019927,2]
[337689911,1725964241575,-257.60858833,0.00019927,2]
[337689913,1725964241584,-500.0,0.00019927,2]
[337689915,1725964241593,-352.50655815,0.00019927,2]
[337689916,1725964241603,-500.0,0.00019927,2]
[337689919,1725964241613,-500.0,0.00019927,2]
[337689921,1725964241622,-500.0,0.00019927,2]
[337689923,1725964241632,-500.0,0.00019927,2]
[337689925,1725964241642,-500.0,0.00019927,2]
[337689927,1725964241651,-500.0,0.00019927,2]
[337689929,1725964241662,-431.59422235,0.00019927,2]
[337689931,1725964241672,-500.0,0.00019927,2]
[337689933,1725964241682,-151.0,0.00019927,2]
[337689935,1725964241691,-532.19,0.00019927,2]
[337689937,1725964241700,-151.0,0.00019927,2]
[337689939,1725964241711,-58236.35,0.00019927,2]
[337689941,1725964241721,-393.946806,0.00019927,2]
[337689943,1725964241730,-393.946806,0.00019927,2]
[337689945,1725964241741,-2212.59,0.00019927,2]
[337689947,1725964241750,-2278.72,0.00019927,2]
[337689949,1725964241760,-500.0,0.00019928,2]
[337689951,1725964241770,-500.0,0.00019928,2]
[337689953,1725964241779,-500.0,0.00019928,2]
[337689955,1725964241789,-500.0,0.00019928,2]
[337689957,1725964241800,-500.0,0.00019928,2]
[337689959,1725964241810,-500.0,0.00019928,2]
[337689961,1725964241819,-500.0,0.00019928,2]
[337689963,1725964241828,-500.0,0.00019928,2]
[337689965,1725964241837,-500.0,0.00019928,2]
[337689967,1725964241847,-500.0,0.00019928,2]
[337689969,1725964241856,-1411.78,0.00019928,2]
[337689971,1725964241867,-727.93,0.00019928,2]
[337689973,1725964241877,-500.0,0.00019928,2]
[337689975,1725964241887,-500.0,0.00019928,2]
[337689977,1725964241898,-599.97,0.00019928,2]
[337689979,1725964241908,-534.07,0.00019928,2]
[337689981,1725964241918,-507.94989365,0.00019928,2]
[337689983,1725964241927,-501.74265565,0.00019928,2]
[337689985,1725964241937,-500.0,0.00019928,2]
[337689988,1725964241949,-500.0,0.00019928,2]
[337689990,1725964241959,-1551.46,0.00019928,2]
[337689992,1725964241972,-254.89578595,0.00019928,2]
[337689994,1725964241982,-500.0,0.00019928,2]
[337689996,1725964241991,-500.0,0.00019928,2]
[337689998,1725964242001,-510.23244367,0.00019928,2]
[337690000,1725964242011,-500.0,0.00019928,2]
[337690002,1725964242020,-500.0,0.00019928,2]
[337690004,1725964242030,-544.28,0.00019928,2]
[337690006,1725964242039,-500.0,0.00019928,2]
[337690008,1725964242049,-1159.97,0.00019928,2]
[337690010,1725964242059,-1233.72,0.00019928,2]
[337690012,1725964242068,-500.0,0.00019928,2]
[337690014,1725964242078,-1098.16,0.00019928,2]
[337690016,1725964242087,-692.49,0.00019928,2]
[337690018,1725964242097,-1792.41,0.00019928,2]
[337690020,1725964242107,-500.0,0.00019928,2]
[337690022,1725964242116,-500.0,0.00019928,2]
[337690024,1725964242126,-500.0,0.00019928,2]
[337690026,1725964242136,-500.0,0.00019928,2]
[337690028,1725964242146,-500.0,0.00019928,2]
[337690030,1725964242155,-500.0,0.00019928,2]
[337690032,1725964242164,-500.0,0.00019928,2]
[337690034,1725964242174,-1028.0,0.00019928,2]
[337690036,1725964242184,-500.0,0.00019928,2]
[337690038,1725964242193,-644.07,0.00019928,2]
[337690040,1725964242203,-507.71566468,0.00019928,2]
[337690042,1725964242213,-854.32,0.00019928,2]
[337690044,1725964242222,-500.0,0.00019928,2]
[337690046,1725964242234,-873.06,0.00019928,2]
[337690049,1725964242243,-4656.91,0.00019928,2]
[337690050,1725964242252,-500.0,0.00019928,2]
[337690052,1725964242262,-500.0,0.00019928,2]
[337690055,1725964242271,-500.0,0.00019928,2]
[337690057,1725964242281,-2020.12,0.00019928,2]
[337690059,1725964242292,-500.0,0.00019928,2]
[337690061,1725964242303,-1716.36,0.00019928,2]
[337690063,1725964242312,-500.0,0.00019928,2]
[337690065,1725964242323,-500.0,0.00019928,2]
[337690067,1725964242332,-500.0,0.00019928,2]
[337690069,1725964242342,-503.92364613,0.00019928,2]
[337690071,1725964242352,-500.0,0.00019928,2]
[337690073,1725964242361,-500.0,0.00019928,2]
[337690075,1725964242371,-3621.59,0.00019928,2]
[337690077,1725964242380,-218.15357974,0.00019928,2]
[337690079,1725964242390,-502.91650469,0.00019928,2]
[337690081,1725964242399,-1000.75,0.00019928,2]
[337690083,1725964242409,-1658.7,0.00019928,2]
[337690085,1725964242419,-503.81408358,0.00019928,2]
[337690087,1725964242428,-443.227954,0.00019928,2]
[337690089,1725964242438,-500.0,0.00019928,2]
[337690091,1725964242448,-443.227954,0.00019928,2]
[337690093,1725964242458,-518.7,0.00019928,2]
[337690095,1725964242467,-2166.61,0.00019928,2]
[337690097,1725964242477,-500.0,0.00019928,2]
[337690099,1725964242487,-1104.35,0.00019928,2]
[337690101,1725964242497,-739.68,0.00019928,2]
[337690103,1725964242507,-4763.96,0.00019928,2]
[337690105,1725964242517,-500.0,0.00019928,2]
[337690107,1725964242527,-2076.41,0.00019928,2]
[337690109,1725964242536,-1575.5,0.00019928,2]
[337690111,1725964242546,-151.0,0.00019928,2]
[337690113,1725964242555,-500.0,0.00019928,2]
[337690115,1725964242565,-500.0,0.00019928,2]
[337690117,1725964242574,-1124.84,0.00019928,2]
[337690119,1725964242584,-151.0,0.00019928,2]
[337690121,1725964242594,-184.206486,0.00019928,2]
[337690123,1725964242603,-151.0,0.00019928,2]
[337690125,1725964242613,-500.0,0.00019928,2]
[337690127,1725964242622,-184.206486,0.00019928,2]
[337690129,1725964242632,-500.0,0.00019928,2]
[337690131,1725964242641,-448.07582262,0.00019928,2]
[337690133,1725964242651,-500.0,0.00019928,2]
[337690135,1725964242660,-156.49361723,0.00019928,2]
[337690137,1725964242669,-3664.68,0.00019928,2]
[337690140,1725964242679,-1380.63,0.00019928,2]
[337690142,1725964242689,-500.0,0.00019928,2]
[337690144,1725964242700,-648.36,0.00019928,2]
[337690146,1725964242712,-1503.94,0.00019928,2]
[337690148,1725964242724,-641.83,0.00019928,2]
[337690151,1725964242735,-502.98841147,0.00019928,2]
[337690153,1725964242745,-151.0,0.00019928,2]
[337690155,1725964242755,-151.0,0.00019928,2]
[337690157,1725964242766,-500.0,0.00019928,2]
[337690159,1725964242776,-1929.8,0.00019928,2]
[337690161,1725964242785,-1814.4,0.00019928,2]
[337690163,1725964242795,-500.0,0.00019928,2]
[337690165,1725964242805,-151.0,0.00019928,2]
[337690167,1725964242815,-151.0,0.00019928,2]
[337690169,1725964242825,-500.0,0.00019928,2]
[337690171,1725964242835,-696.28,0.00019928,2]
[337690173,1725964242845,-525.85,0.00019928,2]
[337690175,1725964242854,-151.0,0.00019928,2]
[337690177,1725964242864,-503.21125443,0.00019928,2]
[337690179,1725964242874,-151.0,0.00019928,2]
[337690181,1725964242884,-500.0,0.00019928,2]
[337690183,1725964242893,-393.946806,0.00019928,2]
[337690185,1725964242903,-393.946806,0.00019928,2]
[337690188,1725964242912,-393.946806,0.00019928,2]
[337690190,1725964242921,-393.946806,0.00019928,2]
[337690192,1725964242931,-869.84,0.00019928,2]
[337690194,1725964242941,-151.841297,0.00019928,2]
[337690195,1725964242950,-500.0,0.00019928,2]
[337690197,1725964242961,-151.0,0.00019928,2]
[337690199,1725964242971,-151.0,0.00019928,2]
[337690201,1725964242980,-151.0,0.00019928,2]
[337690204,1725964242990,-33891.88734628,0.00019928,2]
[337690227,1725964243468,-1403.72,0.00019927,2]
[337690229,1725964243477,-9736.27265372,0.00019928,2]
[337690231,1725964243487,-500.0,0.00019928,2]
[337690233,1725964243496,-500.0,0.00019928,2]
[337690235,1725964243506,-500.0,0.00019928,2]
[337690237,1725964243515,-500.0,0.00019928,2]
[337690239,1725964243525,-500.0,0.00019928,2]
[337690241,1725964243534,-500.0,0.00019928,2]
[337690243,1725964243544,-500.0,0.00019928,2]
[337690245,1725964243553,-151.0,0.00019928,2]
[337690247,1725964243563,-151.0,0.00019928,2]
[337690249,1725964243572,-151.0,0.00019928,2]
[337690251,1725964243582,-1439.45532606,0.00019928,2]
[337690253,1725964243591,-151.0,0.00019928,2]
[337690255,1725964243601,-151.0,0.00019928,2]
[337690258,1725964243610,-151.0,0.00019928,2]
[337690260,1725964243619,-763.87,0.00019928,2]
[337690262,1725964243629,-500.0,0.00019928,2]
[337690264,1725964243638,-602.53,0.00019928,2]
[337690266,1725964243647,-500.0,0.00019928,2]
[337690268,1725964243657,-5726.8500704,0.00019928,2]
[337690566,1725964269164,350.0,0.00028,120]
[337690627,1725965000548,-350.245185,0.00017808,2]
[337690641,1725965273690,-5084.29220904,0.00018657,2]
[337690680,1725965384604,-228.761384,0.00017808,2]
[337690687,1725965408794,-210.58809,0.00017808,2]
[337690867,1725965440842,-228.761384,0.0001861,2]
[337690869,1725965440853,-228.761384,0.00018662,2]
[337690872,1725965440863,-228.761384,0.00018713,2]
[337690874,1725965440873,-228.761384,0.00018764,2]
[337690876,1725965440883,-300.0,0.00018788,2]
[337690878,1725965440894,-14496.5281725,0.00018789,2]
[337690880,1725965440904,-228.761384,0.00018815,2]
[337690882,1725965440914,-228.761384,0.00018866,2]
[337690884,1725965440925,-228.761384,0.00018917,2]
[337690886,1725965440934,-228.761384,0.00018968,2]
[337690888,1725965440945,-228.761384,0.00019019,2]
[337690890,1725965440956,-228.761384,0.0001907,2]
[337690893,1725965440967,-228.761384,0.00019121,2]
[337690895,1725965440977,-228.761384,0.00019172,2]
[337690897,1725965440987,-5084.29220904,0.00019205,2]
[337690899,1725965440997,-228.761384,0.00019223,2]
[337690901,1725965441006,-228.761384,0.00019274,2]
[337690903,1725965441016,-228.761384,0.00019325,2]
[337690905,1725965441027,-228.761384,0.00019376,2]
[337690907,1725965441037,-228.761384,0.00019427,2]
[337690909,1725965441047,-228.761384,0.00019478,2]
[337690911,1725965441058,-307.7383087,0.000195,2]
[337690913,1725965441068,-228.761384,0.00019529,2]
[337690915,1725965441079,-228.761384,0.0001958,2]
[337690917,1725965441090,-1057.22,0.00019701,2]
[337690919,1725965441101,-500.0,0.00019701,2]
[337690922,1725965441111,-1000.0,0.00019701,2]
[337690924,1725965441121,-5084.29220904,0.00019707,2]
[337690926,1725965441131,-153.0,0.00019752,2]
[337690928,1725965441140,-860.82,0.00019789,3]
[337690930,1725965441150,-500.0,0.00019798,2]
[337690931,1725965441160,-500.0,0.00019798,2]
[337690933,1725965441169,-268.38362084,0.00019798,2]
[337690935,1725965441179,-500.0,0.00019798,2]
[337690937,1725965441189,-500.0,0.00019798,2]
[337690940,1725965441198,-500.0,0.00019798,2]
[337690942,1725965441208,-449.34243053,0.00019798,2]
[337690944,1725965441221,-500.0,0.00019798,2]
[337690946,1725965441230,-500.0,0.00019798,2]
[337690948,1725965441240,-500.0,0.00019798,2]
[337690950,1725965441250,-500.0,0.00019798,2]
[337690952,1725965441259,-500.0,0.00019798,2]
[337690954,1725965441269,-500.0,0.00019798,2]
[337690956,1725965441279,-500.0,0.00019798,2]
[337690958,1725965441290,-500.0,0.00019798,2]
[337690960,1725965441300,-500.0,0.00019798,2]
[337690962,1725965441311,-500.0,0.00019798,2]
[337690964,1725965441321,-391.15898594,0.00019798,2]
[337690966,1725965441332,-500.0,0.00019798,2]
[337690968,1725965441343,-500.0,0.00019798,2]
[337690970,1725965441354,-500.0,0.00019798,2]
[337690972,1725965441363,-500.0,0.00019798,2]
[337690974,1725965441373,-500.0,0.00019798,2]
[337690977,1725965441383,-500.0,0.00019798,2]
[337690979,1725965441393,-500.0,0.00019798,2]
[337690981,1725965441404,-500.0,0.00019798,2]
[337690983,1725965441415,-500.0,0.00019798,2]
[337690985,1725965441425,-500.0,0.00019798,2]
[337690987,1725965441434,-500.0,0.00019798,2]
[337690989,1725965441444,-500.0,0.00019798,2]
[337690991,1725965441454,-500.0,0.00019798,2]
[337690993,1725965441464,-500.0,0.00019798,2]
[337690995,1725965441473,-500.0,0.00019798,2]
[337690997,1725965441483,-500.0,0.00019798,2]
[337690999,1725965441492,-500.0,0.00019798,2]
[337691001,1725965441503,-500.0,0.00019798,2]
[337691003,1725965441514,-500.0,0.00019798,2]
[337691006,1725965441525,-500.0,0.00019798,2]
[337691008,1725965441535,-3055.62,0.00019798,2]
[337691010,1725965441545,-6669.69,0.00019798,2]
[337691012,1725965441557,-1280.67,0.00019798,2]
[337691014,1725965441567,-1389.12,0.00019798,2]
[337691016,1725965441577,-1487.56,0.00019798,2]
[337691018,1725965441586,-1222.44,0.00019798,2]
[337691020,1725965441597,-29604.4567399,0.00019799,3]
[337691022,1725965441607,-500.0,0.00019799,2]
[337691024,1725965441618,-500.0,0.00019799,2]
[337691026,1725965441628,-500.0,0.00019799,2]
[337691029,1725965441639,-500.0,0.00019799,2]
[337691031,1725965441649,-506.34624746,0.00019799,2]
[337691033,1725965441661,-500.0,0.00019799,2]
[337691035,1725965441670,-500.0,0.00019799,2]
[337691037,1725965441680,-500.0,0.00019799,2]
[337691039,1725965441690,-500.0,0.00019799,2]
[337691041,1725965441699,-500.0,0.00019799,2]
[337691043,1725965441708,-500.0,0.00019799,2]
[337691045,1725965441718,-500.0,0.00019799,2]
[337691047,1725965441728,-500.0,0.00019799,2]
[337691049,1725965441738,-500.0,0.00019799,2]
[337691051,1725965441747,-500.0,0.00019799,2]
[337691052,1725965441756,-500.0,0.00019799,2]
[337691053,1725965441766,-572.11,0.00019799,2]
[337691054,1725965441777,-500.0,0.00019799,2]
[337691055,1725965441787,-523.72930768,0.00019799,2]
[337691056,1725965441796,-1201.57,0.00019799,2]
[337691057,1725965441805,-500.0,0.00019799,2]
[337691058,1725965441815,-500.0,0.00019799,2]
[337691059,1725965441827,-500.0,0.00019799,2]
[337691061,1725965441837,-500.0,0.00019799,2]
[337691063,1725965441849,-501.15800861,0.00019799,2]
[337691065,1725965441859,-638.89,0.00019799,2]
[337691067,1725965441869,-638.89,0.00019799,2]
[337691069,1725965441878,-289.73,0.00019799,2]
[337691071,1725965441888,-8497.75,0.00019799,2]
[337691073,1725965441897,-527.42535031,0.00019799,2]
[337691075,1725965441906,-500.0,0.00019799,2]
[337691077,1725965441915,-1084.69,0.00019799,2]
[337691079,1725965441925,-500.0,0.00019799,2]
[337691081,1725965441934,-500.0,0.00019799,2]
[337691083,1725965441943,-500.0,0.00019799,2]
[337691085,1725965441953,-1435.2,0.00019799,2]
[337691087,1725965441962,-4840.93,0.00019799,2]
[337691089,1725965441971,-500.0,0.00019799,2]
[337691091,1725965441981,-500.0,0.00019799,2]
[337691093,1725965441990,-500.0,0.00019799,2]
[337691095,1725965441999,-500.0,0.00019799,2]
[337691097,1725965442009,-527.61396848,0.00019799,2]
[337691099,1725965442018,-503.82524376,0.00019799,2]
[337691101,1725965442027,-500.0,0.00019799,2]
[337691103,1725965442036,-4467.37,0.00019799,2]
[337691105,1725965442045,-1548.68,0.00019799,2]
[337691107,1725965442055,-523.15,0.00019799,2]
[337691109,1725965442064,-500.0,0.00019799,2]
[337691111,1725965442073,-590.02913619,0.00019799,2]
[337691113,1725965442083,-500.0,0.00019799,2]
[337691115,1725965442091,-1641.72,0.00019799,2]
[337691116,1725965442101,-354.39716057,0.00019799,2]
[337691118,1725965442110,-857.25,0.00019799,2]
[337691119,1725965442119,-608.22,0.00019799,2]
[337691120,1725965442128,-500.0,0.00019799,2]
[337691121,1725965442137,-500.0,0.00019799,2]
[337691122,1725965442146,-500.0,0.00019799,2]
[337691123,1725965442155,-500.0,0.00019799,2]
[337691124,1725965442164,-500.0,0.00019799,2]
[337691125,1725965442173,-500.0,0.00019799,2]
[337691126,1725965442184,-500.0,0.00019799,2]
[337691127,1725965442193,-638.48,0.00019799,2]
[337691128,1725965442203,-500.0,0.00019799,2]
[337691129,1725965442214,-532.19,0.00019799,2]
[337691130,1725965442224,-500.0,0.00019799,2]
[337691131,1725965442233,-500.0,0.00019799,2]
[337691132,1725965442242,-500.0,0.00019799,2]
[337691133,1725965442252,-500.0,0.00019799,2]
[337691134,1725965442262,-500.0,0.00019799,2]
[337691135,1725965442270,-1901.85,0.00019799,2]
[337691136,1725965442280,-500.0,0.00019799,2]
[337691138,1725965442290,-554.034942,0.00019799,2]
[337691139,1725965442300,-151.0,0.00019799,2]
[337691141,1725965442310,-500.0,0.00019799,2]
[337691143,1725965442320,-554.034942,0.00019799,2]
[337691144,1725965442329,-686.16,0.00019799,2]
[337691145,1725965442340,-762.97,0.00019799,2]
[337691146,1725965442350,-1695.92,0.00019799,2]
[337691147,1725965442362,-500.0,0.00019799,2]
[337691148,1725965442371,-266.386238,0.00019799,2]
[337691149,1725965442380,-500.0,0.00019799,2]
[337691150,1725965442390,-750.7,0.00019799,2]
[337691151,1725965442399,-500.0,0.00019799,2]
[337691152,1725965442408,-500.0,0.00019799,2]
[337691153,1725965442417,-266.386238,0.00019799,2]
[337691154,1725965442427,-500.0,0.00019799,2]
[337691155,1725965442436,-151.0,0.00019799,2]